[Event "Titled Tuesday Blitz May 30 Late 2023"]
[White "Timmermans, Mark"]
[Black "Bortnyk, Olexandr"]
[WhiteFideId "1026399"]
[BlackFideId "14120828"]
[WhiteElo "2460"]
[BlackElo "2734"]
[Result "0-1"]
[Round "05"]
[TimeControl "180+2"]
[Date "2023.05.31"]
[WhiteClock "0:00:07"]
[BlackClock "0:00:40"]

1. b4 {[%clk 0:02:59]}  e5 {[%clk 0:02:56]} 2. Bb2 {[%clk 0:02:58]}  f6 {[%clk 0:02:56]} 3. e4 {[%clk 0:02:55]}  Bxb4 {[%clk 0:02:53]} 4. Bc4 {[%clk 0:02:54]}  Ne7 {[%clk 0:02:45]} 5. Qh5+ {[%clk 0:02:53]}  Ng6 {[%clk 0:02:45]} 6. f4 {[%clk 0:02:52]}  exf4 {[%clk 0:02:43]} 7. Nf3 {[%clk 0:02:51]}  Qe7 {[%clk 0:02:41]} 8. Kd1 {[%clk 0:02:51]}  Kd8 {[%clk 0:02:19]} 9. Nc3 {[%clk 0:02:09]}  c6 {[%clk 0:02:16]} 10. Re1 {[%clk 0:02:07]}  Qc5 {[%clk 0:02:15]} 11. Qxc5 {[%clk 0:01:59]}  Bxc5 {[%clk 0:02:16]} 12. d4 {[%clk 0:01:59]}  Bb4 {[%clk 0:02:07]} 13. e5 {[%clk 0:01:50]}  d5 {[%clk 0:02:06]} 14. exd6 {[%clk 0:01:46]}  Bxd6 {[%clk 0:02:04]} 15. Ne4 {[%clk 0:01:46]}  Bb4 {[%clk 0:02:02]} 16. c3 {[%clk 0:01:45]}  Be7 {[%clk 0:02:02]} 17. Kd2 {[%clk 0:01:37]}  Bf5 {[%clk 0:02:01]} 18. Bd3 {[%clk 0:01:37]}  Na6 {[%clk 0:01:52]} 19. a4 {[%clk 0:01:24]}  Nc7 {[%clk 0:01:49]} 20. a5 {[%clk 0:01:17]}  Nd5 {[%clk 0:01:46]} 21. a6 {[%clk 0:01:17]}  b6 {[%clk 0:01:44]} 22. Re2 {[%clk 0:01:15]}  Ne3 {[%clk 0:01:36]} 23. c4 {[%clk 0:01:12]}  Bxe4 {[%clk 0:01:33]} 24. Bxe4 {[%clk 0:01:12]}  Nxc4+ {[%clk 0:01:33]} 25. Kc3 {[%clk 0:01:05]}  Nxb2 {[%clk 0:01:34]} 26. Kxb2 {[%clk 0:01:06]}  Rc8 {[%clk 0:01:33]} 27. Rc1 {[%clk 0:00:58]}  c5 {[%clk 0:01:33]} 28. dxc5 {[%clk 0:00:59]}  Rxc5 {[%clk 0:01:32]} 29. Rd1+ {[%clk 0:00:59]}  Ke8 {[%clk 0:01:22]} 30. Nd4 {[%clk 0:00:52]}  Ne5 {[%clk 0:01:19]} 31. Nf5 {[%clk 0:00:45]}  Rb5+ {[%clk 0:01:17]} 32. Ka2 {[%clk 0:00:35]}  Ra5+ {[%clk 0:01:14]} 33. Kb1 {[%clk 0:00:35]}  g6 {[%clk 0:01:10]} 34. Nd4 {[%clk 0:00:21]}  Kf7 {[%clk 0:01:06]} 35. Nc6 {[%clk 0:00:22]}  Nxc6 {[%clk 0:01:04]} 36. Bxc6 {[%clk 0:00:23]}  Rd8 {[%clk 0:01:01]} 37. Rde1 {[%clk 0:00:18]}  Bb4 {[%clk 0:01:00]} 38. Rf1 {[%clk 0:00:17]}  Rxa6 {[%clk 0:00:56]} 39. Rxf4 {[%clk 0:00:16]}  Bc3 {[%clk 0:00:54]} 40. Rfe4 {[%clk 0:00:11]}  Be5 {[%clk 0:00:52]} 41. Bb5 {[%clk 0:00:10]}  Ra1+ {[%clk 0:00:47]} 42. Kc2 {[%clk 0:00:11]}  Ra2+ {[%clk 0:00:44]} 43. Kb3 {[%clk 0:00:11]}  Rxe2 {[%clk 0:00:45]} 44. Rxe2 {[%clk 0:00:12]}  Bxh2 {[%clk 0:00:44]} 45. Bc4+ {[%clk 0:00:11]}  Kf8 {[%clk 0:00:44]} 46. Re3 {[%clk 0:00:07]}  Be5 {[%clk 0:00:40]} 0-1


[Site "https://www.chess.com"]

[Event "Titled Tuesday Blitz May 30 Late 2023"]
[White "Kramnik, Vladimir"]
[Black "Domingo Nunez, Ruben"]
[WhiteFideId "4101588"]
[BlackFideId "22245570"]
[WhiteElo "2703"]
[BlackElo "2404"]
[Result "1-0"]
[Round "05"]
[TimeControl "180+2"]
[Date "2023.05.31"]
[WhiteClock "0:00:28"]
[BlackClock "0:00:02"]

1. e4 {[%clk 0:03:00]}  g6 {[%clk 0:02:57]} 2. d4 {[%clk 0:02:59]}  Bg7 {[%clk 0:02:58]} 3. Nf3 {[%clk 0:02:59]}  c6 {[%clk 0:02:59]} 4. c4 {[%clk 0:02:57]}  d5 {[%clk 0:03:00]} 5. cxd5 {[%clk 0:02:54]}  cxd5 {[%clk 0:03:01]} 6. e5 {[%clk 0:02:52]}  Nc6 {[%clk 0:03:01]} 7. Bb5 {[%clk 0:02:50]}  Nh6 {[%clk 0:03:00]} 8. O-O {[%clk 0:02:47]}  O-O {[%clk 0:03:00]} 9. Bxc6 {[%clk 0:02:33]}  bxc6 {[%clk 0:03:00]} 10. Nbd2 {[%clk 0:02:30]}  f6 {[%clk 0:02:32]} 11. exf6 {[%clk 0:02:29]}  exf6 {[%clk 0:02:21]} 12. Re1 {[%clk 0:02:30]}  Nf7 {[%clk 0:02:16]} 13. Nb3 {[%clk 0:02:26]}  Nd6 {[%clk 0:01:57]} 14. Nc5 {[%clk 0:02:25]}  Bf5 {[%clk 0:01:47]} 15. b3 {[%clk 0:02:22]}  Re8 {[%clk 0:01:29]} 16. Rxe8+ {[%clk 0:02:20]}  Qxe8 {[%clk 0:01:23]} 17. Bf4 {[%clk 0:02:17]}  Bf8 {[%clk 0:01:16]} 18. Rc1 {[%clk 0:02:11]}  g5 {[%clk 0:01:16]} 19. Be3 {[%clk 0:01:45]}  Bg6 {[%clk 0:01:05]} 20. Qf1 {[%clk 0:01:43]}  Nf5 {[%clk 0:01:01]} 21. Re1 {[%clk 0:01:40]}  Qc8 {[%clk 0:00:57]} 22. h3 {[%clk 0:01:29]}  h5 {[%clk 0:00:48]} 23. Qd3 {[%clk 0:01:19]}  Kh7 {[%clk 0:00:36]} 24. Qc3 {[%clk 0:01:17]}  g4 {[%clk 0:00:31]} 25. hxg4 {[%clk 0:01:15]}  hxg4 {[%clk 0:00:32]} 26. Nh2 {[%clk 0:01:08]}  g3 {[%clk 0:00:30]} 27. Ng4 {[%clk 0:01:05]}  Kg7 {[%clk 0:00:15]} 28. fxg3 {[%clk 0:00:59]}  Bd6 {[%clk 0:00:14]} 29. Bf4 {[%clk 0:00:54]}  Bxf4 {[%clk 0:00:05]} 30. Ne6+ {[%clk 0:00:52]}  Kf7 {[%clk 0:00:03]} 31. Nxf4 {[%clk 0:00:52]}  Nd6 {[%clk 0:00:03]} 32. Re6 {[%clk 0:00:39]}  Ne4 {[%clk 0:00:03]} 33. Qb4 {[%clk 0:00:33]}  Bf5 {[%clk 0:00:01]} 34. Qe7+ {[%clk 0:00:31]}  Kg8 {[%clk 0:00:01]} 35. Nh6+ {[%clk 0:00:30]}  Kh8 {[%clk 0:00:02]} 36. Nxf5 {[%clk 0:00:29]}  Qa6 {[%clk 0:00:02]} 37. Qg7# {[%clk 0:00:28]} 1-0


[Site "https://www.chess.com"]

[Event "Titled Tuesday Blitz May 30 Late 2023"]
[White "Popilski, Gil"]
[Black "Bok, Benjamin"]
[WhiteFideId "2809060"]
[BlackFideId "1017063"]
[WhiteElo "2537"]
[BlackElo "2657"]
[Result "0-1"]
[Round "05"]
[TimeControl "180+2"]
[Date "2023.05.31"]
[WhiteClock "0:00:01"]
[BlackClock "0:00:03"]

1. e4 {[%clk 0:02:11]}  c5 {[%clk 0:02:59]} 2. Nf3 {[%clk 0:02:10]}  d6 {[%clk 0:03:00]} 3. d4 {[%clk 0:02:11]}  cxd4 {[%clk 0:03:00]} 4. Nxd4 {[%clk 0:02:11]}  Nf6 {[%clk 0:03:01]} 5. Nc3 {[%clk 0:02:12]}  a6 {[%clk 0:03:02]} 6. f4 {[%clk 0:02:11]}  e5 {[%clk 0:03:01]} 7. Nf3 {[%clk 0:02:11]}  Nbd7 {[%clk 0:03:01]} 8. Qe2 {[%clk 0:02:11]}  b5 {[%clk 0:02:59]} 9. a4 {[%clk 0:02:08]}  b4 {[%clk 0:02:56]} 10. Nd5 {[%clk 0:02:07]}  Bb7 {[%clk 0:02:51]} 11. Bd2 {[%clk 0:01:51]}  a5 {[%clk 0:01:53]} 12. Qb5 {[%clk 0:00:56]}  Bxd5 {[%clk 0:01:34]} 13. exd5 {[%clk 0:00:54]}  Rb8 {[%clk 0:01:30]} 14. Qa6 {[%clk 0:00:37]}  Qc7 {[%clk 0:00:41]} 15. Bb5 {[%clk 0:00:18]}  Be7 {[%clk 0:00:34]} 16. fxe5 {[%clk 0:00:14]}  dxe5 {[%clk 0:00:33]} 17. Qc6 {[%clk 0:00:14]}  Bd6 {[%clk 0:00:24]} 18. O-O-O {[%clk 0:00:11]}  O-O {[%clk 0:00:22]} 19. g4 {[%clk 0:00:08]}  Nb6 {[%clk 0:00:18]} 20. g5 {[%clk 0:00:07]}  Nfxd5 {[%clk 0:00:17]} 21. Qxc7 {[%clk 0:00:07]}  Nxc7 {[%clk 0:00:17]} 22. Rhe1 {[%clk 0:00:07]}  Nxb5 {[%clk 0:00:15]} 23. axb5 {[%clk 0:00:08]}  Rfe8 {[%clk 0:00:15]} 24. Be3 {[%clk 0:00:07]}  Nc4 {[%clk 0:00:14]} 25. Ba7 {[%clk 0:00:06]}  Rb7 {[%clk 0:00:12]} 26. Bg1 {[%clk 0:00:05]}  e4 {[%clk 0:00:12]} 27. b3 {[%clk 0:00:05]}  Bf4+ {[%clk 0:00:12]} 28. Kb1 {[%clk 0:00:04]}  Na3+ {[%clk 0:00:12]} 29. Ka2 {[%clk 0:00:04]}  Nxb5 {[%clk 0:00:11]} 30. Ka1 {[%clk 0:00:03]}  Nc3 {[%clk 0:00:08]} 31. Rd4 {[%clk 0:00:03]}  Rbe7 {[%clk 0:00:06]} 32. Nd2 {[%clk 0:00:03]}  Be5 {[%clk 0:00:06]} 33. Rc4 {[%clk 0:00:02]}  e3 {[%clk 0:00:04]} 34. Rxe3 {[%clk 0:00:01]}  Nd5+ {[%clk 0:00:03]} 35. Rxe5 {[%clk 0:00:01]}  Rxe5 {[%clk 0:00:04]} 36. Nf3 {[%clk 0:00:01]}  Re2 {[%clk 0:00:04]} 37. Kb2 {[%clk 0:00:01]}  g6 {[%clk 0:00:03]} 0-1


[Site "https://www.chess.com"]

[Event "Titled Tuesday Blitz May 30 Late 2023"]
[White "Sjugirov, Sanan"]
[Black "Ibadov, Dashgyn"]
[WhiteFideId "4189302"]
[BlackFideId "24107514"]
[WhiteElo "2569"]
[BlackElo "2208"]
[Result "0-1"]
[Round "05"]
[TimeControl "180+2"]
[Date "2023.05.31"]
[WhiteClock "0:00:04"]
[BlackClock "0:00:27"]

1. e4 {[%clk 0:03:00]}  e6 {[%clk 0:03:00]} 2. d4 {[%clk 0:03:00]}  d5 {[%clk 0:03:01]} 3. Nd2 {[%clk 0:03:01]}  c5 {[%clk 0:03:01]} 4. Ngf3 {[%clk 0:03:01]}  cxd4 {[%clk 0:03:00]} 5. exd5 {[%clk 0:03:01]}  Qxd5 {[%clk 0:03:00]} 6. Bc4 {[%clk 0:03:02]}  Qd6 {[%clk 0:03:00]} 7. O-O {[%clk 0:03:02]}  Nf6 {[%clk 0:03:01]} 8. Nb3 {[%clk 0:03:02]}  Nc6 {[%clk 0:03:01]} 9. Nbxd4 {[%clk 0:03:02]}  Nxd4 {[%clk 0:03:02]} 10. Nxd4 {[%clk 0:03:03]}  Be7 {[%clk 0:03:03]} 11. c3 {[%clk 0:02:59]}  O-O {[%clk 0:03:01]} 12. Qf3 {[%clk 0:02:52]}  Qc7 {[%clk 0:03:00]} 13. Bb3 {[%clk 0:02:39]}  a5 {[%clk 0:03:00]} 14. a4 {[%clk 0:02:33]}  Bd7 {[%clk 0:03:00]} 15. Re1 {[%clk 0:02:28]}  Bc6 {[%clk 0:02:59]} 16. Qh3 {[%clk 0:02:14]}  Be4 {[%clk 0:02:56]} 17. Bg5 {[%clk 0:01:57]}  Bg6 {[%clk 0:02:56]} 18. Nb5 {[%clk 0:01:57]}  Qc6 {[%clk 0:02:51]} 19. Rad1 {[%clk 0:01:33]}  Rad8 {[%clk 0:02:51]} 20. Nd4 {[%clk 0:01:17]}  Qb6 {[%clk 0:02:49]} 21. Nb5 {[%clk 0:01:00]}  Bc5 {[%clk 0:02:29]} 22. Bh4 {[%clk 0:00:39]}  Ne4 {[%clk 0:01:50]} 23. Qf3 {[%clk 0:00:29]}  Nd2 {[%clk 0:01:10]} 24. Qf4 {[%clk 0:00:30]}  Nxb3 {[%clk 0:01:06]} 25. Bxd8 {[%clk 0:00:30]}  Rxd8 {[%clk 0:01:06]} 26. h4 {[%clk 0:00:25]}  h6 {[%clk 0:00:55]} 27. g4 {[%clk 0:00:18]}  Be7 {[%clk 0:00:50]} 28. h5 {[%clk 0:00:15]}  Bc2 {[%clk 0:00:50]} 29. Rxd8+ {[%clk 0:00:14]}  Qxd8 {[%clk 0:00:51]} 30. Qc7 {[%clk 0:00:05]}  Qd2 {[%clk 0:00:47]} 31. Rf1 {[%clk 0:00:05]}  Qg5 {[%clk 0:00:40]} 32. Qg3 {[%clk 0:00:04]}  Nd2 {[%clk 0:00:32]} 33. Re1 {[%clk 0:00:04]}  Be4 {[%clk 0:00:27]} 0-1


[Site "https://www.chess.com"]

[Event "Titled Tuesday Blitz May 30 Late 2023"]
[White "Saveliev, Alexei"]
[Black "Babazada, Khazar"]
[WhiteFideId "24128546"]
[BlackFideId "13413554"]
[WhiteElo "2271"]
[BlackElo "2351"]
[Result "0-1"]
[Round "05"]
[TimeControl "180+2"]
[Date "2023.05.31"]
[WhiteClock "0:00:31"]
[BlackClock "0:02:07"]

1. c4 {[%clk 0:02:38]}  Nf6 {[%clk 0:02:58]} 2. Nc3 {[%clk 0:02:36]}  d6 {[%clk 0:02:57]} 3. d4 {[%clk 0:02:35]}  g6 {[%clk 0:02:57]} 4. e4 {[%clk 0:02:36]}  Bg7 {[%clk 0:02:57]} 5. f4 {[%clk 0:02:36]}  O-O {[%clk 0:02:58]} 6. Nf3 {[%clk 0:02:37]}  c5 {[%clk 0:02:58]} 7. d5 {[%clk 0:02:38]}  e6 {[%clk 0:02:59]} 8. Be2 {[%clk 0:02:38]}  exd5 {[%clk 0:03:00]} 9. cxd5 {[%clk 0:02:39]}  b5 {[%clk 0:03:00]} 10. e5 {[%clk 0:02:33]}  dxe5 {[%clk 0:03:01]} 11. fxe5 {[%clk 0:02:33]}  Ng4 {[%clk 0:03:02]} 12. Bg5 {[%clk 0:02:33]}  Qb6 {[%clk 0:03:03]} 13. O-O {[%clk 0:02:34]}  c4+ {[%clk 0:03:02]} 14. Kh1 {[%clk 0:02:34]}  Nd7 {[%clk 0:03:03]} 15. h3 {[%clk 0:01:56]}  Ngxe5 {[%clk 0:02:58]} 16. Nxe5 {[%clk 0:01:56]}  Nxe5 {[%clk 0:02:59]} 17. Be7 {[%clk 0:01:55]}  Re8 {[%clk 0:02:59]} 18. d6 {[%clk 0:01:55]}  Bb7 {[%clk 0:02:59]} 19. Bg4 {[%clk 0:01:22]}  b4 {[%clk 0:02:42]} 20. Ne2 {[%clk 0:01:20]}  Nxg4 {[%clk 0:02:41]} 21. hxg4 {[%clk 0:01:21]}  Qe3 {[%clk 0:02:26]} 22. Nf4 {[%clk 0:01:08]}  Be5 {[%clk 0:02:26]} 23. Nd5 {[%clk 0:00:39]}  Qg3 {[%clk 0:02:24]} 24. Kg1 {[%clk 0:00:35]}  Qh2+ {[%clk 0:02:06]} 25. Kf2 {[%clk 0:00:35]}  Bg3+ {[%clk 0:02:06]} 26. Kf3 {[%clk 0:00:31]}  Bxd6 {[%clk 0:02:07]} 0-1


[Site "https://www.chess.com"]

[Event "Titled Tuesday Blitz May 30 Late 2023"]
[White "Remizov, Yaroslav"]
[Black "Lopez Mulet, Inigo"]
[WhiteFideId "34134015"]
[BlackFideId "22235620"]
[WhiteElo "2400"]
[BlackElo "2289"]
[Result "1-0"]
[Round "05"]
[TimeControl "180+2"]
[Date "2023.05.31"]
[WhiteClock "0:02:26"]
[BlackClock "0:02:23"]

1. d4 {[%clk 0:02:45]}  c6 {[%clk 0:02:58]} 2. e4 {[%clk 0:02:44]}  d5 {[%clk 0:02:59]} 3. Nc3 {[%clk 0:02:40]}  dxe4 {[%clk 0:02:54]} 4. Nxe4 {[%clk 0:02:40]}  Bf5 {[%clk 0:02:55]} 5. Ng3 {[%clk 0:02:40]}  Bg6 {[%clk 0:02:55]} 6. Bc4 {[%clk 0:02:41]}  e6 {[%clk 0:02:54]} 7. N1e2 {[%clk 0:02:41]}  Nf6 {[%clk 0:02:48]} 8. O-O {[%clk 0:02:41]}  Bd6 {[%clk 0:02:48]} 9. f4 {[%clk 0:02:42]}  Qc7 {[%clk 0:02:40]} 10. f5 {[%clk 0:02:42]}  exf5 {[%clk 0:02:40]} 11. Nxf5 {[%clk 0:02:42]}  Bxh2+ {[%clk 0:02:36]} 12. Kh1 {[%clk 0:02:43]}  O-O {[%clk 0:02:36]} 13. g3 {[%clk 0:02:41]}  Bxf5 {[%clk 0:02:36]} 14. Rxf5 {[%clk 0:02:42]}  Bxg3 {[%clk 0:02:36]} 15. Rxf6 {[%clk 0:02:42]}  gxf6 {[%clk 0:02:35]} 16. Qg1 {[%clk 0:02:43]}  Nd7 {[%clk 0:02:33]} 17. Bh6 {[%clk 0:02:37]}  Rfe8 {[%clk 0:02:23]} 18. Nxg3 {[%clk 0:02:33]}  Kh8 {[%clk 0:02:23]} 19. Nf5 {[%clk 0:02:26]} 1-0


[Site "https://www.chess.com"]

[Event "Titled Tuesday Blitz May 30 Late 2023"]
[White "Petrosyan, Manuel"]
[Black "Garakov, Mikhael"]
[WhiteFideId "13300857"]
[BlackFideId "4169034"]
[WhiteElo "2576"]
[BlackElo "2347"]
[Result "1-0"]
[Round "05"]
[TimeControl "180+2"]
[Date "2023.05.31"]
[WhiteClock "0:00:03"]
[BlackClock "0:00:04"]

1. e4 {[%clk 0:03:00]}  c5 {[%clk 0:02:25]} 2. Nf3 {[%clk 0:02:57]}  e6 {[%clk 0:02:25]} 3. d4 {[%clk 0:02:53]}  cxd4 {[%clk 0:02:25]} 4. Nxd4 {[%clk 0:02:54]}  Nc6 {[%clk 0:02:24]} 5. Nc3 {[%clk 0:02:54]}  Qc7 {[%clk 0:02:24]} 6. Be3 {[%clk 0:02:50]}  a6 {[%clk 0:02:24]} 7. Qf3 {[%clk 0:02:50]}  d6 {[%clk 0:02:24]} 8. O-O-O {[%clk 0:02:42]}  Bd7 {[%clk 0:02:24]} 9. Qg3 {[%clk 0:02:36]}  Nf6 {[%clk 0:02:15]} 10. f4 {[%clk 0:02:11]}  h5 {[%clk 0:02:10]} 11. Be2 {[%clk 0:01:58]}  b5 {[%clk 0:02:00]} 12. e5 {[%clk 0:01:46]}  dxe5 {[%clk 0:01:46]} 13. fxe5 {[%clk 0:01:46]}  Qxe5 {[%clk 0:01:20]} 14. Bf4 {[%clk 0:01:42]}  Qc5 {[%clk 0:01:14]} 15. Nb3 {[%clk 0:01:08]}  Qa7 {[%clk 0:00:58]} 16. Bxb5 {[%clk 0:00:55]}  Rc8 {[%clk 0:00:38]} 17. Ba4 {[%clk 0:00:36]}  h4 {[%clk 0:00:35]} 18. Qf3 {[%clk 0:00:31]}  Bb4 {[%clk 0:00:35]} 19. Ne4 {[%clk 0:00:26]}  Nd5 {[%clk 0:00:35]} 20. Nd6+ {[%clk 0:00:22]}  Bxd6 {[%clk 0:00:34]} 21. Bxd6 {[%clk 0:00:23]}  Qe3+ {[%clk 0:00:24]} 22. Qxe3 {[%clk 0:00:20]}  Nxe3 {[%clk 0:00:25]} 23. Rd3 {[%clk 0:00:18]}  Nxg2 {[%clk 0:00:18]} 24. Nc5 {[%clk 0:00:17]}  Nb8 {[%clk 0:00:12]} 25. Nxd7 {[%clk 0:00:14]}  Nxd7 {[%clk 0:00:12]} 26. Be5 {[%clk 0:00:05]}  O-O {[%clk 0:00:12]} 27. Bxd7 {[%clk 0:00:05]}  Rc4 {[%clk 0:00:10]} 28. b3 {[%clk 0:00:04]}  Rg4 {[%clk 0:00:09]} 29. h3 {[%clk 0:00:04]}  Rg6 {[%clk 0:00:10]} 30. Bd6 {[%clk 0:00:04]}  Rd8 {[%clk 0:00:09]} 31. Bc7 {[%clk 0:00:04]}  Ra8 {[%clk 0:00:08]} 32. Rhd1 {[%clk 0:00:03]}  f5 {[%clk 0:00:08]} 33. Bc6 {[%clk 0:00:03]}  Rc8 {[%clk 0:00:08]} 34. Rd8+ {[%clk 0:00:04]}  Rxd8 {[%clk 0:00:08]} 35. Rxd8+ {[%clk 0:00:05]}  Kh7 {[%clk 0:00:09]} 36. Be8 {[%clk 0:00:04]}  Rg5 {[%clk 0:00:08]} 37. Bf7 {[%clk 0:00:04]}  Ne3 {[%clk 0:00:06]} 38. Bxe6 {[%clk 0:00:03]}  Rg2 {[%clk 0:00:05]} 39. Rd2 {[%clk 0:00:02]}  Rg1+ {[%clk 0:00:05]} 40. Kb2 {[%clk 0:00:03]}  Nd1+ {[%clk 0:00:05]} 41. Ka3 {[%clk 0:00:02]}  Kg6 {[%clk 0:00:05]} 42. Bc4 {[%clk 0:00:02]}  Ne3 {[%clk 0:00:05]} 43. Rd6+ {[%clk 0:00:03]}  Kg5 {[%clk 0:00:05]} 44. Bd3 {[%clk 0:00:04]}  f4 {[%clk 0:00:04]} 45. Rg6+ {[%clk 0:00:04]}  Kh5 {[%clk 0:00:04]} 46. Rxg1 {[%clk 0:00:05]}  f3 {[%clk 0:00:05]} 47. Bf4 {[%clk 0:00:05]}  f2 {[%clk 0:00:04]} 48. Rg5+ {[%clk 0:00:05]}  Kh6 {[%clk 0:00:04]} 49. Bxe3 {[%clk 0:00:03]} 1-0


[Site "https://www.chess.com"]

[Event "Titled Tuesday Blitz May 30 Late 2023"]
[White "Milikow, Yoav"]
[Black "ElDivis"]
[WhiteFideId "2822237"]
[WhiteElo "2410"]
[BlackElo "2539"]
[Result "0-1"]
[Round "05"]
[TimeControl "180+2"]
[Date "2023.05.31"]
[WhiteClock "0:00:12"]
[BlackClock "0:00:09"]

1. d4 {[%clk 0:03:00]}  Nf6 {[%clk 0:02:57]} 2. c4 {[%clk 0:02:59]}  g6 {[%clk 0:02:56]} 3. Nc3 {[%clk 0:02:57]}  Bg7 {[%clk 0:02:56]} 4. e4 {[%clk 0:02:58]}  d6 {[%clk 0:02:57]} 5. Be2 {[%clk 0:02:58]}  O-O {[%clk 0:02:56]} 6. Be3 {[%clk 0:02:59]}  Nbd7 {[%clk 0:02:56]} 7. Nf3 {[%clk 0:02:58]}  Ng4 {[%clk 0:02:51]} 8. Bg5 {[%clk 0:02:56]}  c5 {[%clk 0:02:42]} 9. Nd5 {[%clk 0:02:40]}  f6 {[%clk 0:02:25]} 10. Bd2 {[%clk 0:02:37]}  e6 {[%clk 0:02:18]} 11. Nf4 {[%clk 0:02:35]}  Nb6 {[%clk 0:02:01]} 12. h3 {[%clk 0:02:25]}  Nh6 {[%clk 0:01:37]} 13. dxc5 {[%clk 0:02:24]}  dxc5 {[%clk 0:01:36]} 14. Qc2 {[%clk 0:02:15]}  Nf7 {[%clk 0:01:29]} 15. O-O {[%clk 0:02:10]}  Qe7 {[%clk 0:01:23]} 16. Be3 {[%clk 0:02:07]}  Bd7 {[%clk 0:01:17]} 17. Rfd1 {[%clk 0:02:00]}  Bc6 {[%clk 0:01:16]} 18. Nd2 {[%clk 0:01:37]}  Rad8 {[%clk 0:01:10]} 19. Nb3 {[%clk 0:01:36]}  Ba4 {[%clk 0:00:53]} 20. Rxd8 {[%clk 0:01:03]}  Rxd8 {[%clk 0:00:51]} 21. Rd1 {[%clk 0:01:03]}  Rxd1+ {[%clk 0:00:40]} 22. Bxd1 {[%clk 0:01:00]}  Nd7 {[%clk 0:00:39]} 23. Qd2 {[%clk 0:00:50]}  b6 {[%clk 0:00:35]} 24. Nxc5 {[%clk 0:00:45]}  Nxc5 {[%clk 0:00:27]} 25. Bxc5 {[%clk 0:00:44]}  Qxc5 {[%clk 0:00:24]} 26. Bxa4 {[%clk 0:00:44]}  Bh6 {[%clk 0:00:23]} 27. Qe3 {[%clk 0:00:16]}  Qxe3 {[%clk 0:00:17]} 28. fxe3 {[%clk 0:00:17]}  Bxf4 {[%clk 0:00:16]} 29. exf4 {[%clk 0:00:18]}  Nd6 {[%clk 0:00:17]} 30. e5 {[%clk 0:00:13]}  fxe5 {[%clk 0:00:15]} 31. fxe5 {[%clk 0:00:14]}  Nxc4 {[%clk 0:00:13]} 32. Bb3 {[%clk 0:00:14]}  Nxe5 {[%clk 0:00:13]} 33. Bxe6+ {[%clk 0:00:14]}  Kg7 {[%clk 0:00:13]} 34. Kf1 {[%clk 0:00:14]}  Nd3 {[%clk 0:00:13]} 35. b3 {[%clk 0:00:14]}  Kf6 {[%clk 0:00:13]} 36. Bc4 {[%clk 0:00:14]}  Nb4 {[%clk 0:00:10]} 37. a3 {[%clk 0:00:12]}  Nc2 {[%clk 0:00:10]} 38. a4 {[%clk 0:00:11]}  Ne3+ {[%clk 0:00:10]} 39. Ke2 {[%clk 0:00:11]}  Nxc4 {[%clk 0:00:10]} 40. bxc4 {[%clk 0:00:12]}  Ke5 {[%clk 0:00:10]} 41. Ke3 {[%clk 0:00:12]}  g5 {[%clk 0:00:08]} 42. g3 {[%clk 0:00:11]}  h5 {[%clk 0:00:08]} 43. Kd3 {[%clk 0:00:10]}  h4 {[%clk 0:00:08]} 44. gxh4 {[%clk 0:00:09]}  gxh4 {[%clk 0:00:08]} 45. Ke3 {[%clk 0:00:10]}  a5 {[%clk 0:00:07]} 46. Kf3 {[%clk 0:00:08]}  Kf5 {[%clk 0:00:07]} 47. Ke3 {[%clk 0:00:08]}  Ke5 {[%clk 0:00:08]} 48. Kf3 {[%clk 0:00:08]}  Kd4 {[%clk 0:00:04]} 49. Kg4 {[%clk 0:00:09]}  Kxc4 {[%clk 0:00:05]} 50. Kxh4 {[%clk 0:00:10]}  b5 {[%clk 0:00:05]} 51. axb5 {[%clk 0:00:09]}  Kxb5 {[%clk 0:00:06]} 52. Kg4 {[%clk 0:00:09]}  a4 {[%clk 0:00:07]} 53. h4 {[%clk 0:00:09]}  a3 {[%clk 0:00:08]} 54. h5 {[%clk 0:00:10]}  a2 {[%clk 0:00:08]} 55. h6 {[%clk 0:00:11]}  a1=Q {[%clk 0:00:09]} 56. h7 {[%clk 0:00:12]}  Qh8 {[%clk 0:00:09]} 0-1


[Site "https://www.chess.com"]

[Event "Titled Tuesday Blitz May 30 Late 2023"]
[White "Bringas Gomez, Artai"]
[Black "Mekhitarian, Krikor Sevag"]
[WhiteFideId "24534064"]
[BlackFideId "2107660"]
[WhiteElo "2179"]
[BlackElo "2604"]
[Result "0-1"]
[Round "05"]
[TimeControl "180+2"]
[Date "2023.05.31"]
[WhiteClock "0:00:11"]
[BlackClock "0:00:06"]

1. e4 {[%clk 0:03:00]}  e6 {[%clk 0:02:58]} 2. Nc3 {[%clk 0:02:56]}  d5 {[%clk 0:02:58]} 3. d4 {[%clk 0:02:57]}  Nf6 {[%clk 0:02:53]} 4. e5 {[%clk 0:02:57]}  Nfd7 {[%clk 0:02:52]} 5. f4 {[%clk 0:02:57]}  c5 {[%clk 0:02:51]} 6. Nf3 {[%clk 0:02:58]}  Nc6 {[%clk 0:02:51]} 7. Be3 {[%clk 0:02:58]}  cxd4 {[%clk 0:02:42]} 8. Nxd4 {[%clk 0:02:58]}  Qb6 {[%clk 0:02:43]} 9. Qd2 {[%clk 0:02:56]}  Qxb2 {[%clk 0:02:37]} 10. Rb1 {[%clk 0:02:57]}  Qa3 {[%clk 0:02:37]} 11. Bb5 {[%clk 0:02:57]}  Nxd4 {[%clk 0:02:34]} 12. Bxd4 {[%clk 0:02:56]}  a6 {[%clk 0:02:35]} 13. Bxd7+ {[%clk 0:02:32]}  Bxd7 {[%clk 0:02:34]} 14. Rxb7 {[%clk 0:02:32]}  Bb4 {[%clk 0:02:27]} 15. O-O {[%clk 0:02:30]}  Bc8 {[%clk 0:01:58]} 16. Rb6 {[%clk 0:02:17]}  O-O {[%clk 0:01:25]} 17. Rb1 {[%clk 0:01:23]}  Bc5 {[%clk 0:00:58]} 18. R6b3 {[%clk 0:01:16]}  Qa5 {[%clk 0:00:57]} 19. Qe3 {[%clk 0:01:15]}  Bxd4 {[%clk 0:00:57]} 20. Qxd4 {[%clk 0:01:16]}  Bd7 {[%clk 0:00:57]} 21. Nd1 {[%clk 0:00:45]}  Rac8 {[%clk 0:00:55]} 22. Ne3 {[%clk 0:00:44]}  h6 {[%clk 0:00:47]} 23. h4 {[%clk 0:00:33]}  Rc7 {[%clk 0:00:32]} 24. h5 {[%clk 0:00:30]}  Rfc8 {[%clk 0:00:29]} 25. Kh2 {[%clk 0:00:22]}  Qc5 {[%clk 0:00:25]} 26. Qd2 {[%clk 0:00:21]}  d4 {[%clk 0:00:22]} 27. Ng4 {[%clk 0:00:21]}  Qxc2 {[%clk 0:00:21]} 28. Qxd4 {[%clk 0:00:20]}  Qf5 {[%clk 0:00:21]} 29. Rg3 {[%clk 0:00:15]}  Qxh5+ {[%clk 0:00:20]} 30. Kg1 {[%clk 0:00:15]}  Kh8 {[%clk 0:00:16]} 31. Qd6 {[%clk 0:00:14]}  Qf5 {[%clk 0:00:16]} 32. Kh2 {[%clk 0:00:10]}  Qxb1 {[%clk 0:00:14]} 33. Nxh6 {[%clk 0:00:09]}  Qh7 {[%clk 0:00:11]} 34. Qe7 {[%clk 0:00:07]}  Bb5 {[%clk 0:00:06]} 35. Qd6 {[%clk 0:00:07]}  gxh6 {[%clk 0:00:05]} 36. f5 {[%clk 0:00:07]}  Rd7 {[%clk 0:00:03]} 37. Qd2 {[%clk 0:00:08]}  exf5 {[%clk 0:00:03]} 38. Qf4 {[%clk 0:00:07]}  Rg8 {[%clk 0:00:03]} 39. e6 {[%clk 0:00:07]}  fxe6 {[%clk 0:00:02]} 40. Qe5+ {[%clk 0:00:08]}  Rdg7 {[%clk 0:00:02]} 41. Qf6 {[%clk 0:00:08]}  f4 {[%clk 0:00:02]} 42. Rh3 {[%clk 0:00:08]}  Bd3 {[%clk 0:00:01]} 43. Rxh6 {[%clk 0:00:08]}  Qxh6+ {[%clk 0:00:02]} 44. Qxh6+ {[%clk 0:00:08]}  Rh7 {[%clk 0:00:03]} 45. Kg1 {[%clk 0:00:08]}  Rxh6 {[%clk 0:00:03]} 46. a4 {[%clk 0:00:09]}  Rf6 {[%clk 0:00:04]} 47. a5 {[%clk 0:00:09]}  Rfg6 {[%clk 0:00:05]} 48. Kh1 {[%clk 0:00:09]}  Rg3 {[%clk 0:00:05]} 49. Kh2 {[%clk 0:00:10]}  Rxg2+ {[%clk 0:00:05]} 50. Kh1 {[%clk 0:00:11]}  R2g3 {[%clk 0:00:06]} 51. Kh2 {[%clk 0:00:11]}  Bf5 {[%clk 0:00:06]} 52. Kh1 {[%clk 0:00:11]}  Rh3# {[%clk 0:00:06]} 0-1


[Site "https://www.chess.com"]